bitfinex/quotes_ETHUSD_20260214
["timestamp","ask_amount","ask_price","bid_price","bid_amount"]
[1771070889135,1.19183829,2097.6,2096.9,1.19333476]
[1771070889335,1.79101947,2097.6,2096.9,1.76258677]
[1771070889537,2.73082243,2097.7,2097.0,0.56925201]
[1771070889957,2.73078593,2097.7,2097.0,0.56925201]
[1771070890155,2.73078906,2097.7,2097.0,0.56925201]
[1771070890349,2.73078906,2097.7,2097.1,1.76137446]
[1771070891157,2.73078906,2097.7,2097.1,0.56925201]
[1771070891754,0.59918118,2097.6,2096.9,0.57035201]
[1771070891934,0.59918118,2097.6,2096.9,1.76258215]
[1771070892663,1.19189511,2097.5,2096.9,1.76258215]
[1771070893052,1.19189511,2097.5,2096.9,0.57035201]
[1771070894148,1.79107629,2097.5,2096.9,0.57035201]
[1771070894345,1.79107629,2097.5,2096.9,0.0011]
[1771070895162,1.19187176,2097.6,2096.9,0.57035201]
[1771070895747,1.79105294,2097.6,2096.9,0.0011]
[1771070895946,1.79105294,2097.6,2096.9,0.57035201]
[1771070896363,1.19187176,2097.6,2096.9,0.57035201]
[1771070897065,1.19187176,2097.6,2097.0,1.1921793]
[1771070897250,1.19187176,2097.6,2097.0,1.76143131]
[1771070898781,1.79105294,2097.6,2097.0,1.76143131]
[1771070899008,1.1917076,2097.9,2097.1,0.56925201]
[1771070899275,0.59918118,2097.9,2097.2,1.19206561]
[1771070899775,1.19261105,2098.0,2097.3,0.56925201]
[1771070899974,0.001,2098.0,2097.3,0.56925201]
[1771070901478,0.001,2098.0,2097.3,1.19196408]
[1771070901671,0.59918118,2097.9,2097.2,3.17327356]
[1771070901867,0.001,2098.0,2097.3,0.56925201]
[1771070902176,0.60018118,2098.0,2097.3,0.56925201]
[1771070903350,0.001,2098.0,2097.3,0.56925201]
[1771070903868,0.001,2098.0,2097.4,1.19195194]
[1771070904184,0.001,2098.0,2097.5,0.56925201]
[1771070906964,0.001,2098.0,2097.5,1.1918881]
[1771070909184,0.001,2098.0,2097.5,0.56925201]
[1771070911213,0.001,2098.0,2097.6,1.19183829]
[1771070911573,0.001,2098.0,2097.7,0.53465617]
[1771070912271,0.001,2098.2,2097.7,0.53465617]
[1771070913095,0.001,2098.2,2097.8,1.19172466]
[1771070913492,0.001,2098.2,2097.8,1.72638083]
[1771070913698,0.001,2098.2,2097.8,0.53465617]
[1771070914282,0.001,2098.2,2097.7,2.60474291]
[1771070915074,0.001,2098.2,2097.7,3.13939908]
[1771070915602,0.001,2098.2,2097.8,0.53465617]
[1771070917301,0.001,2098.2,2097.7,2.60474291]
[1771070917518,0.001,2098.2,2097.7,3.13939908]
[1771070920102,0.001,2098.2,2097.7,1.94765617]
[1771070920304,0.001,2098.2,2097.7,3.13943215]
[1771070921388,0.001,2098.2,2097.7,1.19177598]
[1771070921596,0.53482252,2098.0,2097.2,1.72350967]
[1771070921913,0.53482252,2098.0,2097.3,1.421]
[1771070922279,0.53482252,2098.0,2097.3,1.95244406]
[1771070924213,0.53482252,2097.8,2097.1,1.72352705]
[1771070924578,0.53482252,2097.8,2097.1,3.14452705]
[1771070924797,0.53482252,2097.8,2097.1,1.72352705]
[1771070924983,0.53482252,2097.8,2097.1,3.14452705]
[1771070925183,1.19166785,2097.9,2097.2,0.53144406]
[1771070927408,1.19166785,2097.9,2097.3,1.72345283]
[1771070928281,1.72649037,2097.9,2097.2,2.61402075]
[1771070928480,1.72649037,2097.9,2097.2,3.14546481]
[1771070929610,1.72649037,2097.9,2097.3,0.53144406]
[1771070930118,0.53482252,2097.7,2096.9,0.53254406]
[1771070930304,0.53482252,2097.7,2096.9,1.72477001]
[1771070930626,3.26849037,2097.9,2097.0,0.53144406]
[1771070930923,2.73366785,2097.9,2097.0,0.53144406]
[1771070931428,3.26849037,2097.9,2097.0,0.53144406]
[1771070931725,0.53482252,2097.8,2097.1,1.19212245]
[1771070931921,0.53482252,2097.8,2097.1,2.61412245]
[1771070932093,0.53482252,2097.8,2097.1,3.14556651]
[1771070933497,2.73366785,2097.9,2097.2,0.53144406]
[1771070933696,2.73366831,2097.9,2097.3,1.19200877]
[1771070933907,2.73366831,2097.9,2097.2,1.72346815]
[1771070934221,2.73366831,2097.9,2097.1,3.14552275]
[1771070934222,3.26849083,2097.9,2097.1,3.14552275]
[1771070934428,0.53482252,2097.7,2096.9,1.19329223]
[1771070934628,0.53482252,2097.7,2096.9,2.61629223]
[1771070936528,0.53482252,2097.5,2096.9,2.61629223]
[1771070936731,0.53482252,2097.5,2096.9,2.6163339]
[1771070937108,0.53482252,2097.5,2096.9,0.0011]
[1771070937313,0.53482252,2097.5,2096.9,1.19332449]
[1771070937514,0.53482252,2097.5,2096.9,0.0011]
[1771070938518,0.53482252,2097.3,2096.9,0.0011]
[1771070940608,1.72683348,2097.3,2096.9,0.0011]
[1771070940815,1.19187609,2097.6,2096.9,0.53254406]
[1771070941250,1.73160976,2097.6,2096.9,0.53254406]
[1771070941552,0.53973367,2097.5,2096.9,0.0011]
[1771070942942,0.53973367,2097.3,2096.9,0.0011]
[1771070944928,1.19206561,2097.2,2096.9,0.0011]
[1771070945234,0.53973367,2097.1,2096.9,0.0011]
[1771070947262,1.73187938,2097.1,2096.9,0.0011]
[1771070947466,1.19200877,2097.3,2096.9,0.0011]
[1771070947833,3.27572935,2097.4,2096.9,0.0011]
[1771070949237,1.19206561,2097.2,2096.9,0.0011]
[1771070949562,0.53973367,2097.1,2096.9,0.0011]
[1771070951436,1.1921793,2097.0,2096.9,0.0011]
[1771070951759,1.73189428,2097.1,2096.9,0.0011]
[1771070953752,1.19216061,2097.1,2096.9,0.0011]
[1771070953960,0.53973367,2097.0,2096.9,0.0011]
[1771070954679,1.19216061,2097.1,2096.9,0.0011]
[1771070954848,0.53973367,2097.0,2096.9,0.0011]
[1771070955257,0.53973367,2097.0,2096.7,0.0011]
[1771070955481,1.73196982,2096.9,2096.7,0.0011]
[1771070956292,0.53973367,2096.8,2096.7,0.0011]
[1771070957185,0.53973367,2096.8,2096.6,0.0011]
[1771070957186,0.53973367,2096.8,2096.4,0.0011]
[1771070957775,1.19232927,2096.8,2096.4,0.0011]
[1771070958286,0.53973367,2096.7,2096.4,0.0011]
[1771070958882,1.19232927,2096.8,2096.4,0.0011]
[1771070959055,1.73206294,2096.8,2096.4,0.0011]
[1771070959373,0.53973367,2096.7,2096.4,0.0011]
[1771070960358,1.7321,2096.7,2096.4,0.0011]
[1771070960555,0.53973367,2096.6,2096.4,0.0011]
[1771070961664,1.19236633,2096.7,2096.4,0.0011]
[1771070962186,0.53973367,2096.6,2096.4,0.0011]
[1771070963181,2.759331,2096.8,2096.4,0.0011]
[1771070963384,1.567,2096.8,2096.4,0.0011]
[1771070963586,1.567,2096.8,2096.4,0.55544332]
[1771070963807,1.567,2096.8,2096.4,0.0011]
[1771070965101,0.53973367,2096.8,2096.4,0.0011]
[1771070967082,1.73208355,2096.7,2096.4,0.0011]
[1771070967689,0.53973367,2096.7,2096.4,0.0011]
[1771070969397,1.73209551,2096.7,2096.4,0.0011]
[1771070969600,1.1921793,2097.0,2096.4,0.0011]
[1771070970002,3.3019016,2097.1,2096.4,0.0011]
[1771070970212,2.76212399,2097.1,2096.4,0.55544332]
[1771070970421,1.57,2097.1,2096.4,0.55544332]
[1771070970711,0.53973367,2097.0,2096.4,0.0011]
[1771070971341,0.50583032,2096.8,2096.4,0.0011]
[1771070973303,1.19233329,2096.8,2096.4,0.0011]
[1771070974796,1.69816361,2096.8,2096.4,0.0011]
[1771070976202,0.50583032,2096.5,2095.7,0.18732556]
[1771070976435,2.08283032,2096.7,2095.8,0.18732556]
[1771070976932,0.50583032,2096.6,2095.8,0.18732556]
[1771070977235,0.50583032,2096.6,2095.8,1.59832556]
[1771070977539,1.577,2096.7,2096.0,0.21041477]
[1771070977713,0.50583032,2096.8,2095.9,7.09290961]
[1771070978318,0.50583032,2096.8,2096.1,7.28249484]
[1771070978530,0.50583032,2096.8,2096.1,7.29291705]
[1771070978852,1.69812748,2096.8,2096.1,7.29291705]
[1771070979004,1.69812748,2096.8,2096.1,0.01042221]
[1771070979729,0.54535149,2096.7,2096.0,1.19274809]
[1771070979925,0.54535149,2096.7,2096.0,2.60374809]
[1771070980136,0.54535149,2096.7,2096.0,2.61117562]
[1771070980522,0.54535149,2096.7,2096.0,2.60374809]
[1771070981028,0.54535149,2096.8,2096.1,7.28992231]
[1771070981244,0.54535149,2096.8,2096.1,7.28249484]
[1771070981847,4.17253803,2097.0,2096.3,7.28249484]
[1771070982551,0.54535149,2096.9,2096.4,1.19252051]
[1771070985656,1.19218625,2097.0,2096.4,1.19252051]
[1771070985860,0.54635149,2097.1,2096.5,1.415]
[1771070986154,0.001,2097.1,2096.5,8.69749484]
[1771070986377,0.001,2097.2,2096.7,7.28249484]
[1771070987160,0.001,2097.2,2096.8,1.19229301]
[1771070987355,0.001,2097.2,2096.9,1.416]
[1771070987942,0.54635149,2097.2,2096.9,1.416]
[1771070988140,0.54635149,2097.2,2096.7,1.19231619]
[1771070988440,0.54635149,2097.2,2096.8,1.417]
[1771070988661,0.001,2097.2,2096.8,1.417]
[1771070989529,0.54635149,2097.2,2096.2,7.28249484]
[1771070989755,0.54635149,2097.2,2096.1,4.77059185]
[1771070990361,0.54635149,2097.2,2096.2,1.419]
[1771070990530,0.54635149,2097.2,2096.2,8.70149484]
[1771070991133,5.02432574,2098.1,2096.2,8.70149484]
[1771070991134,0.54535149,2097.8,2097.1,7.28249484]
[1771070991350,0.54535149,2097.8,2097.2,2.61106561]
[1771070991548,0.54535149,2097.8,2097.2,2.51106561]
[1771070991743,1.40435149,2098.0,2097.2,2.51106561]
[1771070992157,0.54535149,2098.0,2097.2,2.51106561]
[1771070992859,0.54535149,2098.0,2097.2,2.46106561]
[1771070994270,0.54535149,2097.9,2097.2,2.46106561]
[1771070994659,0.54535149,2097.9,2097.2,1.19206561]
[1771070994861,0.54535149,2097.9,2097.3,1.421]
[1771070995441,0.54535149,2097.9,2097.3,2.61296178]
[1771070997670,0.001,2098.2,2097.3,9.89109791]
[1771070997870,0.001,2098.2,2097.7,7.27813613]
[1771070998066,0.001,2098.2,2097.8,1.422]
[1771070998571,0.001,2098.2,2097.9,1.423]
[1771070999756,0.001,2098.2,2097.9,2.61466733]
[1771070999957,0.001,2098.2,2097.9,1.19166733]
[1771071000141,0.001,2098.2,2098.0,1.422]
[1771071000342,0.001,2098.2,2097.8,1.19169468]
[1771071000669,0.54635149,2098.2,2097.3,1.19200877]
[1771071000879,0.54635149,2098.2,2097.4,1.423]
[1771071001775,0.54635149,2098.2,2097.5,1.19189511]
[1771071001948,0.001,2098.2,2097.5,1.19189511]
[1771071002148,0.54635149,2098.2,2097.6,1.423]
[1771071002571,0.54635149,2098.2,2097.7,1.423]
[1771071004575,0.54535149,2098.1,2097.7,1.423]
[1771071005179,0.54535149,2098.1,2097.7,2.61477754]
[1771071005380,0.54535149,2098.1,2097.7,1.423]
[1771071005772,0.54535149,2098.1,2097.5,1.19185549]
[1771071005989,0.54535149,2098.1,2097.6,1.423]
[1771071006493,0.54535149,2097.9,2097.4,1.19192111]
[1771071006667,0.54535149,2097.9,2097.5,1.423]
[1771071007074,0.54535149,2097.9,2097.2,1.19206379]
[1771071007397,0.54535149,2097.9,2097.3,1.423]
[1771071007587,0.54535149,2097.9,2097.2,1.19206379]
[1771071007785,0.54535149,2097.9,2097.3,1.423]
[1771071008394,0.54535149,2097.8,2097.1,1.423]
[1771071008599,0.54535149,2097.6,2097.1,1.423]
[1771071008907,0.54535149,2097.6,2097.0,2.61515562]
[1771071009272,0.54535149,2097.6,2097.0,1.19215562]
[1771071009470,0.54535149,2097.6,2097.0,2.61515562]
[1771071010094,0.54535149,2097.6,2097.0,1.423]
[1771071010470,0.54535149,2097.4,2097.0,1.423]
[1771071010672,0.54535149,2097.4,2096.7,1.19343852]
[1771071010872,0.54535149,2097.4,2096.8,1.423]
[1771071012007,0.54535149,2097.4,2096.7,0.0011]
[1771071012796,0.54535149,2097.2,2096.7,0.0011]
[1771071014005,0.54535149,2097.4,2096.7,0.0011]
[1771071014574,1.19182263,2097.7,2096.7,0.0011]
[1771071014773,0.54535149,2097.6,2096.7,0.0011]
[1771071015315,1.73709935,2097.8,2096.7,0.0011]
[1771071015494,0.54535149,2097.8,2096.7,0.0011]
[1771071015676,1.73707989,2097.8,2096.7,0.0011]
[1771071015877,1.73707792,2097.8,2096.7,0.0011]
[1771071016097,0.54535149,2097.7,2096.7,0.0011]
[1771071017980,0.54535149,2097.6,2096.7,0.0011]
[1771071018397,4.76681687,2097.9,2096.7,0.18795624]
[1771071018398,0.54535149,2097.9,2096.7,0.18795624]
[1771071020103,0.54535149,2097.9,2096.8,1.19229301]
[1771071021311,0.54535149,2097.9,2096.9,30.0]
[1771071021619,0.54535149,2098.1,2097.1,23.765]
[1771071022033,0.54535149,2098.1,2097.2,1.19206561]
[1771071022317,0.54535149,2098.0,2097.3,1.425]
[1771071022484,0.54535149,2098.0,2097.2,1.19206561]
[1771071022682,0.54535149,2098.0,2097.3,1.425]
[1771071024104,0.54535149,2097.8,2097.2,1.425]
[1771071024492,0.54535149,2097.8,2097.1,1.424]
[1771071025584,0.54535149,2097.8,2096.8,1.19229301]
[1771071025815,0.54535149,2097.8,2096.9,1.424]
[1771071026206,0.54535149,2097.7,2097.0,1.1921793]
[1771071028913,0.54535149,2097.9,2097.0,1.1921793]
[1771071030823,0.54535149,2097.9,2097.1,1.424]
[1771071031326,0.54535149,2097.8,2097.2,1.424]
[1771071032429,0.54535149,2097.8,2096.9,1.1921793]
[1771071032628,0.54535149,2097.8,2097.3,1.424]
[1771071033425,0.54535149,2097.8,2096.9,1.1921793]
[1771071033601,0.54535149,2097.8,2097.3,1.424]
[1771071034947,0.54535149,2097.8,2097.4,1.19195194]
[1771071035633,0.29535149,2097.8,2097.4,1.19195194]
[1771071037011,0.4738357,2098.0,2097.4,1.19195194]
[1771071037813,0.4738357,2097.9,2097.4,1.19195194]
[1771071040327,0.023839,2097.8,2097.4,1.19195194]
[1771071040922,0.49321998,2097.8,2097.4,1.19195194]
[1771071041526,0.49321998,2097.8,2097.3,2.61797382]
[1771071043840,0.49321998,2097.8,2097.1,1.19212245]
[1771071044131,0.49321998,2097.8,2097.2,1.428]
[1771071044829,0.49321998,2097.8,2097.1,1.19212245]
[1771071045131,0.46938098,2097.7,2097.2,1.429]
[1771071046313,0.46938098,2097.7,2097.3,1.19200877]
[1771071047615,0.46938098,2097.7,2097.2,2.62102136]
[1771071048538,0.46938098,2097.7,2097.2,2.62202136]
[1771071048713,0.46938098,2097.6,2097.2,2.62202136]
[1771071049338,0.46938098,2097.6,2097.2,1.43]
[1771071049640,0.46938098,2097.6,2097.1,2.62309211]
[1771071049938,0.46938098,2097.6,2097.1,2.62311257]
[1771071050337,0.46938098,2097.4,2097.0,2.6242761]
[1771071050851,0.46938098,2097.4,2097.0,1.4321]
[1771071051023,0.46938098,2097.4,2097.0,2.62427055]
[1771071051919,0.46938098,2097.4,2097.0,1.4321]
[1771071052122,0.46938098,2097.4,2097.0,0.0011]
[1771071052444,0.46938098,2097.2,2096.7,0.0011]
[1771071054451,0.46938098,2097.1,2096.7,0.0011]
[1771071055965,0.46938098,2097.3,2096.7,0.0011]
[1771071058356,0.46938098,2097.3,2096.8,1.434]
[1771071059573,0.46938098,2097.3,2096.9,1.19223615]
[1771071059770,0.46938098,2097.5,2096.9,1.19223615]
[1771071059968,1.66128523,2097.5,2096.9,1.19223615]
[1771071060168,0.46938098,2097.4,2096.9,1.19223615]
[1771071061077,0.46938098,2097.7,2096.9,1.19223615]
[1771071061291,0.46938098,2097.7,2097.0,0.16713851]
[1771071061760,0.46938098,2097.7,2097.1,1.19212245]
[1771071061949,0.46938098,2097.7,2097.2,1.435]
[1771071062361,0.48458017,2097.9,2097.2,1.435]
[1771071062551,1.67625399,2097.9,2097.2,1.435]
[1771071062753,0.48358017,2097.8,2097.2,1.435]
[1771071064080,0.48358017,2097.8,2097.3,1.19200877]
[1771071064266,0.48358017,2097.7,2097.3,1.19200877]
[1771071064463,1.67628954,2097.9,2097.3,1.19200877]
[1771071064644,0.48358017,2097.8,2097.3,1.19200877]
[1771071064839,0.48358017,2097.8,2097.2,6.20317722]
[1771071065057,0.48358017,2097.8,2097.2,2.62702154]
[1771071065373,0.48358017,2097.8,2097.2,2.62902154]
[1771071066673,0.48358017,2097.7,2097.2,1.19202154]
[1771071066858,0.48358017,2097.7,2097.2,2.62902154]
[1771071067060,0.48358017,2097.7,2096.8,1.19223615]
[1771071067262,0.48358017,2097.7,2097.1,1.438]
[1771071068875,0.48358017,2097.6,2096.8,2.62923615]
[1771071069273,12.04972499,2097.9,2096.9,7.28196793]
[1771071069274,0.48358017,2097.8,2096.9,7.28196793]
[1771071070269,0.48358017,2097.8,2097.0,1.438]
[1771071070583,0.48358017,2097.8,2097.1,1.438]
[1771071071055,0.48358017,2097.7,2097.2,1.19206561]
[1771071073251,0.48358017,2097.6,2096.8,1.19229301]
[1771071073854,0.48358017,2097.6,2096.8,2.63129301]
[1771071074752,0.48358017,2097.6,2096.7,1.19341404]
[1771071074953,0.48358017,2097.4,2096.7,1.19341404]
[1771071075654,0.48358017,2097.2,2096.7,0.0011]
[1771071078087,0.48358017,2097.0,2096.7,0.0011]
[1771071080282,0.48358017,2096.9,2096.7,0.0011]
[1771071081080,0.48358017,2096.9,2096.5,0.0011]
[1771071082400,0.48358017,2096.8,2096.5,0.0011]
[1771071086004,0.48358017,2097.0,2096.5,0.0011]
[1771071086303,1.67575966,2097.0,2096.5,0.0011]
[1771071086601,0.48358017,2096.9,2096.5,0.0011]
[1771071087410,0.48358017,2097.1,2096.5,0.0011]
[1771071087906,0.48358017,2097.1,2096.5,1.19356362]
[1771071088207,0.48358017,2097.0,2096.5,1.19356362]
[1771071091606,0.47774553,2096.9,2096.5,0.0011]
[1771071093812,0.47774553,2096.8,2096.5,0.0011]
[1771071095817,0.47774553,2096.6,2096.5,0.0011]
[1771071098310,1.67015228,2096.6,2096.5,0.0011]
[1771071099308,0.47774553,2096.5,2096.3,0.0011]
[1771071100511,0.48704073,2096.4,2096.3,0.0011]
[1771071101197,1.67948544,2096.6,2096.3,0.0011]
[1771071102600,0.48704073,2096.6,2096.3,0.0011]
[1771071103319,1.67944918,2096.6,2096.3,0.0011]
[1771071103488,0.48704073,2096.6,2096.3,0.0011]
[1771071104410,1.67944982,2096.6,2096.3,0.0011]
[1771071104711,0.48704073,2096.5,2096.3,0.0011]
[1771071104905,0.48704073,2096.5,2096.1,0.0011]
[1771071106601,0.48704073,2096.3,2096.1,0.0011]
[1771071106919,1.67962938,2096.3,2096.1,0.0011]
[1771071107521,0.48704073,2096.3,2096.1,0.0011]
[1771071109403,1.67962846,2096.3,2096.1,0.0011]
[1771071109718,0.48704073,2096.2,2096.1,0.0011]
[1771071109920,0.48704073,2096.2,2095.9,0.0011]
[1771071110711,3.24959124,2096.4,2095.9,0.0011]
[1771071111214,0.48704073,2096.3,2095.9,0.0011]
[1771071111413,1.67962176,2096.3,2095.9,0.0011]
[1771071112109,0.48704073,2096.3,2095.9,0.0011]
[1771071112654,1.67962962,2096.3,2095.9,0.0011]
[1771071112840,0.48704073,2096.2,2095.9,0.0011]
[1771071116457,2.05704073,2096.4,2095.9,0.0011]
[1771071116628,3.24956362,2096.4,2095.9,0.0011]
[1771071117449,2.76252289,2096.4,2095.9,0.0011]
[1771071117663,0.48704073,2096.3,2095.9,0.0011]
[1771071120162,1.67962054,2096.3,2095.9,0.0011]
[1771071120860,0.48704073,2096.3,2095.9,0.0011]
[1771071121057,0.48704073,2096.5,2095.9,0.16259803]
[1771071121365,0.45855218,2096.4,2095.9,0.0011]
[1771071123361,0.45855218,2096.2,2095.9,0.0011]
[1771071126963,0.45855218,2096.1,2095.9,0.0011]
[1771071133473,0.45855218,2096.0,2095.9,0.0011]
[1771071133704,1.19270723,2096.1,2095.9,0.0011]
[1771071133921,1.65125941,2096.1,2095.9,0.0011]
[1771071134073,1.65125941,2096.1,2095.6,0.0011]
[1771071134074,0.45855218,2096.0,2095.6,0.0011]
[1771071135102,1.19270723,2096.1,2095.2,1.19430147]
[1771071135103,0.45855218,2095.6,2095.2,1.19430147]
[1771071135396,2.8531975,2095.5,2095.2,0.0011]
[1771071135695,2.8531975,2095.4,2095.2,0.16369786]
[1771071135901,0.45855218,2095.8,2095.2,0.16369786]
[1771071136703,0.45855218,2095.8,2095.2,0.0011]
[1771071137094,0.45855218,2095.8,2095.1,4.83673771]
[1771071137294,1.6514151,2095.8,2095.1,4.83673771]
[1771071137982,0.45855218,2095.7,2095.1,4.83673771]
[1771071139700,0.45855218,2095.8,2095.1,4.67413986]
[1771071139886,0.45855218,2095.8,2095.1,4.83673768]
[1771071142611,0.45855218,2095.7,2095.1,4.83673768]
[1771071142790,0.45855218,2095.7,2095.1,6.27073768]
[1771071145281,0.45855218,2095.7,2095.1,6.10813986]
[1771071145816,0.45855218,2095.7,2095.1,6.27073762]
[1771071147122,0.45855218,2095.7,2095.1,4.83673762]
[1771071147317,0.45855218,2095.6,2095.1,2.63026046]
[1771071147622,1.59,2095.9,2095.2,0.16259775]
[1771071147623,0.45855218,2095.8,2095.2,0.16259775]
[1771071147928,0.45855218,2095.8,2095.1,2.79385821]
[1771071152323,0.45855218,2095.8,2095.1,2.63126046]
[1771071152521,0.48951222,2095.7,2095.1,2.63126046]
[1771071153021,0.48951222,2095.7,2095.1,2.63426046]
[1771071153217,0.48951222,2095.7,2095.1,1.19326046]
[1771071153422,0.48951222,2095.7,2095.1,2.63426046]
[1771071154525,0.48951222,2095.7,2095.1,1.19326046]
[1771071154826,0.48951222,2095.7,2095.1,2.63526046]
[1771071155020,0.48951222,2095.6,2095.1,2.63526046]
[1771071155320,0.48951222,2095.6,2095.1,1.19326046]
[1771071155534,0.48951222,2095.6,2095.1,2.63526046]
[1771071155831,0.48951222,2095.6,2095.1,1.19326046]
[1771071156137,0.48951222,2095.6,2095.1,2.63626046]
[1771071156728,0.48951222,2095.6,2095.1,1.443]
[1771071156934,0.48951222,2095.5,2095.1,2.63625416]
[1771071157232,0.48951222,2095.8,2095.1,3.11826975]
[1771071157708,0.48951222,2095.8,2095.1,2.63625416]
[1771071157913,0.48951222,2095.8,2095.2,0.48201559]
[1771071158432,0.48951222,2095.8,2095.1,3.11826975]
[1771071159234,1.19291883,2095.7,2095.1,3.11826975]
[1771071159404,0.48951222,2095.7,2095.1,2.63625973]
[1771071159610,0.48951222,2095.7,2095.1,1.67527532]
[1771071160023,0.48951222,2095.7,2095.1,1.19325973]
[1771071160734,1.19290059,2095.8,2095.1,1.69059275]
[1771071161037,1.64796014,2095.8,2095.2,0.49733302]
[1771071161534,1.64796014,2095.8,2095.1,1.19325973]
[1771071161739,0.45505955,2095.7,2095.1,1.19325973]
[1771071163111,2.04505955,2095.9,2095.1,1.69059275]
[1771071163308,0.001,2096.6,2095.8,0.49733302]
[1771071163537,0.45605955,2096.5,2095.6,1.69030877]
[1771071163849,0.45605955,2096.5,2095.6,1.19297575]
[1771071164015,0.45605955,2096.5,2095.7,1.446]
[1771071165513,0.45505955,2096.3,2095.8,1.19286191]
[1771071167750,1.64764275,2096.3,2095.8,1.19286191]
[1771071167924,1.19255421,2096.4,2095.8,1.19286191]
[1771071168125,1.64852497,2096.5,2095.8,1.19286191]
[1771071168320,0.45505955,2096.4,2095.8,1.19286191]
[1771071168844,0.45505955,2096.4,2095.8,1.69019493]
[1771071169013,0.45505955,2096.4,2095.8,1.19286191]
[1771071171830,0.001,2096.5,2095.9,0.49733302]
[1771071172356,1.64852549,2096.5,2095.9,0.49733302]
[1771071172556,0.45605955,2096.5,2095.9,0.49733302]
[1771071172924,1.64852328,2096.5,2095.8,1.19286191]
[1771071173249,0.45505955,2096.3,2095.8,2.64086191]
[1771071173429,0.45505955,2096.4,2095.8,2.64086191]
[1771071175060,0.45505955,2096.4,2095.8,3.13819493]
[1771071175259,0.45505955,2096.4,2095.8,2.64086191]
[1771071178440,1.64758684,2096.4,2095.8,2.64086191]
[1771071178762,1.64758507,2096.4,2095.8,2.64086191]
[1771071179366,0.45505955,2096.4,2095.8,2.64086191]
[1771071180061,1.64758145,2096.4,2095.8,2.64086191]
[1771071180273,1.1925219,2096.4,2095.8,2.64086191]
[1771071180445,0.45505955,2096.3,2095.8,2.64086191]
[1771071180847,0.45505955,2096.3,2095.8,1.19286191]
[1771071182355,0.49050904,2096.2,2095.7,2.64588433]
[1771071182667,0.49050904,2096.2,2095.7,1.19288433]
[1771071182967,0.49050904,2096.1,2095.7,1.19288433]
[1771071183550,0.49050904,2096.3,2095.7,1.19288433]
[1771071184063,0.49050904,2096.3,2095.7,1.67266411]
[1771071184381,1.19349738,2096.5,2095.8,0.47977978]
[1771071184382,1.68400642,2096.5,2095.8,0.47977978]
[1771071184540,0.49150904,2096.5,2095.9,1.192805]
[1771071185572,0.001,2096.5,2096.0,0.47977978]
[1771071185773,0.001,2096.7,2096.2,7.290229]
[1771071185950,0.001,2096.7,2096.3,0.47977978]
[1771071186573,0.001,2096.7,2096.4,1.19252051]
[1771071186965,0.001,2096.7,2096.4,3.12930029]
[1771071187567,0.001,2097.1,2096.5,0.47977978]
[1771071187759,0.49150904,2097.1,2096.4,2.64952051]
[1771071188076,0.49150904,2097.1,2096.5,0.47977978]
[1771071188691,0.001,2097.1,2096.6,1.67218653]
[1771071189675,0.001,2097.1,2096.6,1.19240675]
[1771071190293,0.001,2097.1,2096.7,0.47977978]
[1771071190582,0.001,2097.1,2096.8,1.19229301]
[1771071191150,0.001,2097.1,2096.6,1.67213083]
[1771071191559,0.001,2097.1,2096.6,1.19235105]
[1771071191847,0.49150904,2097.1,2096.6,1.462]
[1771071192663,0.49050904,2096.9,2096.3,4.77020265]
[1771071192864,0.49050904,2096.9,2096.3,6.71198243]
[1771071193065,0.49050904,2097.1,2096.4,0.47977978]
[1771071193459,0.49050904,2097.0,2096.3,6.23220265]
[1771071193673,0.49050904,2097.0,2096.3,1.19257739]
[1771071193876,0.49050904,2097.0,2096.3,2.65557739]
[1771071194578,0.49050904,2097.0,2096.2,1.19260606]
[1771071194747,0.49050904,2096.8,2096.2,1.19260606]
[1771071195555,1.19221766,2097.0,2096.2,0.47977978]
[1771071195763,0.49050904,2097.0,2096.2,0.47977978]
[1771071196782,0.49050904,2097.0,2096.3,1.67235717]
[1771071196944,1.579,2097.1,2096.4,0.47977978]
[1771071197352,1.68358018,2097.2,2096.4,0.47977978]
[1771071197546,0.49150904,2097.2,2096.4,0.47977978]
[1771071197781,0.49150904,2097.2,2096.6,0.47977978]
[1771071198479,0.49050904,2097.1,2096.5,1.463]
[1771071198676,0.49050904,2097.1,2096.3,1.19257739]
[1771071198851,0.49050904,2097.0,2096.5,1.19246362]
[1771071200884,1.19221529,2097.0,2096.4,1.19248148]
[1771071201056,0.49050904,2096.9,2096.4,1.19248148]
[1771071202157,1.68358158,2097.2,2096.4,1.67226126]
[1771071202353,0.49050904,2097.1,2096.4,1.67226126]
[1771071203561,1.68263518,2097.1,2096.4,1.67226126]
[1771071203957,0.001,2097.2,2096.5,0.49129867]
[1771071204354,0.46754633,2097.1,2096.4,1.19248148]
[1771071205284,0.46754633,2097.1,2096.3,1.19253064]
[1771071205496,0.46754633,2097.1,2096.3,2.65853064]
[1771071206107,0.46754633,2096.9,2096.3,2.65853064]
[1771071208203,0.46754633,2096.8,2096.3,1.19253064]
[1771071208927,0.46754633,2096.8,2096.2,2.66069408]
[1771071209222,0.46754633,2096.8,2096.2,0.0011]
[1771071210277,0.46754633,2096.6,2096.2,0.0011]
[1771071211299,1.19234988,2096.7,2096.2,0.0011]
[1771071211499,0.45506979,2096.6,2096.2,0.0011]
[1771071212891,1.64751629,2096.6,2096.2,0.0011]
[1771071213520,0.45506979,2096.5,2096.2,0.0011]
[1771071214527,1.1924465,2096.6,2096.2,0.0011]
[1771071214824,1.64751629,2096.6,2096.2,0.0011]
[1771071219038,1.19239375,2096.7,2096.2,0.48636022]
[1771071219258,1.64740103,2096.8,2096.2,0.48636022]
[1771071219712,1.64740103,2096.8,2096.2,0.0011]
[1771071220040,0.47500117,2096.7,2096.2,0.0011]
[1771071220952,1.19240675,2096.6,2096.2,0.0011]
[1771071221248,1.66740792,2096.6,2096.2,0.0011]
[1771071222849,0.47500117,2096.5,2096.2,0.0011]
[1771071223220,1.66748526,2096.5,2096.2,0.0011]
[1771071225452,0.47500117,2096.4,2096.2,0.0011]
[1771071226023,0.47500117,2096.4,2096.0,0.0011]
[1771071226630,2.77541595,2096.6,2096.0,0.45407649]
[1771071226952,2.77541595,2096.6,2096.0,0.0011]
[1771071226953,3.25041712,2096.6,2096.0,0.0011]
[1771071227151,0.47500117,2096.5,2096.0,0.0011]
[1771071227359,2.77541595,2096.6,2096.0,0.45407649]
[1771071228053,0.47500117,2096.5,2096.0,0.0011]
[1771071229423,1.19252051,2096.4,2096.0,0.0011]
[1771071229756,1.66752168,2096.4,2096.0,0.0011]
[1771071231559,1.66742721,2096.6,2096.0,0.0011]